bitfinex/quotes_ETHUSD_20240924
["timestamp","ask_amount","ask_price","bid_price","bid_amount"]
[1727178563178,3.78264,2643.7,2643.3,4.60103]
[1727178563481,0.67790421,2643.6,2643.3,4.60103]
[1727178563864,0.67790421,2643.6,2643.4,3.78299]
[1727178564192,0.79048746,2643.7,2643.3,4.60102]
[1727178564389,0.79048746,2643.6,2643.3,4.60102]
[1727178564596,0.79048746,2643.7,2643.3,4.60102]
[1727178564770,2.48617239,2643.7,2643.3,4.60102]
[1727178565117,0.67827397,2643.6,2643.3,4.60102]
[1727178565275,0.79048746,2643.7,2643.6,4.60062]
[1727178565470,1.97136269,2644.1,2643.6,4.60062]
[1727178565471,0.79048746,2644.1,2643.8,3.7823]
[1727178565663,1.46944265,2644.0,2643.8,4.6002]
[1727178565858,0.79048746,2644.0,2643.8,4.6002]
[1727178566356,1.46939813,2644.0,2643.8,4.6002]
[1727178566551,1.46939813,2644.0,2643.8,8.38255]
[1727178567097,1.46939813,2644.0,2643.8,7.56465]
[1727178567098,1.69728067,2643.9,2643.8,7.56465]
[1727178567410,0.67891227,2643.9,2643.8,3.7823]
[1727178567692,1.46938811,2644.0,2643.9,3.78229]
[1727178567900,1.46938747,2644.0,2643.9,3.78229]
[1727178568057,2.20408177,2644.1,2644.0,3.78214]
[1727178568058,0.79048746,2644.1,2644.0,3.78214]
[1727178568258,0.79048746,2644.2,2644.1,3.782]
[1727178568463,1.46944095,2644.2,2644.1,3.782]
[1727178568663,2.48787118,2644.2,2644.1,3.782]
[1727178568902,0.67895349,2644.2,2644.1,3.782]
[1727178569086,2.48801923,2644.2,2644.1,3.782]
[1727178570895,1.69765487,2644.2,2644.1,3.782]
[1727178571098,0.67895349,2644.2,2644.1,3.782]
[1727178571468,1.46944095,2644.2,2644.1,3.782]
[1727178571709,1.46970578,2644.2,2644.1,3.782]
[1727178572087,2.48853326,2644.2,2644.1,3.782]
[1727178572886,0.79048746,2644.3,2644.2,3.78186]
[1727178573189,2.48870754,2644.4,2644.3,3.78171]
[1727178573508,2.88398831,2644.4,2644.3,3.78171]
[1727178573830,2.88398831,2644.4,2644.2,3.78181]
[1727178573984,2.48963875,2644.3,2644.2,3.78181]
[1727178574179,0.79138164,2644.3,2644.2,3.78181]
[1727178574416,0.67930284,2644.3,2644.2,3.78186]
[1727178574628,1.47068448,2644.4,2644.2,3.78186]
[1727178574922,0.67930284,2644.3,2644.2,3.78186]
[1727178575446,0.79138164,2644.4,2644.3,3.78171]
[1727178575624,1.47070717,2644.4,2644.3,3.78171]
[1727178576218,1.81036994,2644.4,2644.3,3.78171]
[1727178576412,1.81007082,2644.4,2644.3,3.78171]
[1727178576636,1.01868918,2644.4,2644.3,3.78171]
[1727178576825,1.81007082,2644.4,2644.3,3.78171]
[1727178577248,1.69769779,2644.4,2644.3,3.78171]
[1727178577455,2.48907943,2644.4,2644.3,3.78171]
[1727178577744,2.48899466,2644.4,2644.3,3.78171]
[1727178578246,2.48898703,2644.4,2644.3,3.78171]
[1727178578452,0.67912612,2644.4,2644.3,3.78171]
[1727178578653,0.79138164,2644.5,2644.3,3.78171]
[1727178578654,1.47050776,2644.5,2644.3,3.78171]
[1727178578859,0.67912612,2644.4,2644.3,3.78171]
[1727178579159,1.47050776,2644.5,2644.3,3.78171]
[1727178579514,1.47050776,2644.5,2644.4,0.8062]
[1727178579754,1.47050776,2644.5,2644.4,4.58777]
[1727178580053,0.67912612,2644.5,2644.4,4.58777]
[1727178580551,1.47050776,2644.6,2644.4,4.58777]
[1727178580847,0.67912612,2644.5,2644.4,4.58777]
[1727178581054,0.79138164,2644.6,2644.4,4.58777]
[1727178581246,1.47017975,2644.6,2644.4,4.58777]
[1727178581415,0.79138164,2644.7,2644.5,3.78143]
[1727178581615,0.79138164,2644.7,2644.4,1.71877705]
[1727178581616,0.79138164,2644.8,2644.7,3.78114]
[1727178581842,1.80939822,2644.8,2644.7,3.78114]
[1727178582043,0.67867772,2644.8,2644.7,3.78114]
[1727178582212,0.79138164,2644.9,2644.7,3.78114]
[1727178582430,0.79138164,2644.9,2644.8,3.781]
[1727178582761,0.79138164,2645.0,2644.9,3.78086]
[1727178582957,0.67852389,2645.0,2644.8,4.5872]
[1727178583161,0.79138164,2645.1,2645.0,3.78071]
[1727178583318,0.79138164,2645.2,2645.0,3.78071]
[1727178583660,1.46989513,2645.2,2645.0,3.78071]
[1727178583840,0.79138164,2645.2,2645.1,3.78057]
[1727178584460,0.79138164,2645.3,2645.1,3.78057]
[1727178584663,0.79138164,2645.3,2645.0,3.78071]
[1727178586620,2.48617267,2645.3,2644.9,3.78079]
[1727178586819,0.67800407,2645.2,2644.9,3.78079]
[1727178587022,0.79138164,2645.3,2644.9,3.78079]
[1727178587358,0.79138164,2645.1,2644.7,3.78106]
[1727178587520,2.48569909,2645.1,2644.7,3.78113]
[1727178587855,0.67787905,2645.0,2644.6,4.60387]
[1727178588029,0.79138164,2645.1,2644.6,4.60387]
[1727178588030,8.44695718,2645.2,2644.7,3.78108]
[1727178588233,0.67799196,2645.1,2644.7,3.78108]
[1727178590780,4.66640716,2645.2,2644.7,3.78108]
[1727178590958,0.67821711,2645.1,2644.7,3.78108]
[1727178591158,4.66640716,2645.2,2644.7,3.78108]
[1727178591354,0.67821911,2645.1,2644.7,3.78108]
[1727178592992,4.45878911,2645.1,2644.7,3.78108]
[1727178593294,4.45878911,2645.1,2644.6,4.60387]
[1727178593295,4.57195164,2645.1,2644.6,4.60387]
[1727178593453,0.79138164,2645.1,2644.6,4.60387]
[1727178593659,3.78072,2645.0,2644.6,4.60387]
[1727178594271,0.79138164,2645.1,2644.7,3.78111]
[1727178594471,5.47809471,2645.1,2644.7,3.78111]
[1727178594668,3.78072,2645.0,2644.6,4.60387]
[1727178594871,3.8752455,2645.0,2644.6,4.60387]
[1727178595889,4.66662714,2645.0,2644.6,4.60387]
[1727178596091,4.57196164,2645.1,2644.6,4.60378]
[1727178596301,0.67904082,2645.0,2644.6,4.60378]
[1727178596481,4.57196164,2645.1,2644.6,4.60378]
[1727178596688,0.67913282,2645.0,2644.6,4.60378]
[1727178596889,0.77365871,2645.0,2644.6,4.60378]
[1727178597200,3.87529589,2645.0,2644.6,4.60378]
[1727178597923,3.78077,2645.0,2644.6,4.60378]
[1727178598094,4.57215164,2645.0,2644.6,4.60378]
[1727178599078,0.09452627,2644.9,2644.6,4.60378]
[1727178599386,4.57215164,2645.0,2644.6,4.60378]
[1727178599387,4.66667791,2645.0,2644.6,4.60378]
[1727178599701,0.67945754,2644.9,2644.6,4.60378]
[1727178599908,0.67945754,2644.9,2644.6,8.385]
[1727178600103,4.66667791,2645.0,2644.6,4.60378]
[1727178600309,3.87529627,2645.0,2644.6,4.60378]
[1727178600512,4.66667791,2645.0,2644.6,4.60378]
[1727178600820,0.67968941,2644.9,2644.6,4.60378]
[1727178602008,0.67968941,2644.9,2644.6,0.8226]
[1727178602490,2.49084191,2644.9,2644.6,0.8226]
[1727178602685,0.79138164,2644.9,2644.6,0.8226]
[1727178602885,2.49105063,2644.9,2644.6,4.60388]
[1727178603121,0.79138164,2644.9,2644.6,4.60388]
[1727178603430,2.49110781,2644.9,2644.6,4.60388]
[1727178603585,0.67984642,2644.8,2644.6,4.60388]
[1727178603787,0.79138164,2644.9,2644.6,4.60388]
[1727178604126,3.87555626,2644.8,2644.6,0.8226]
[1727178604427,3.87555626,2644.8,2644.4,0.8017]
[1727178604428,2.49087394,2644.7,2644.4,0.8017]
[1727178604616,0.67979692,2644.6,2644.4,0.8017]
[1727178604812,0.79138164,2644.7,2644.4,0.8017]
[1727178604985,2.49119034,2644.7,2644.4,0.8017]
[1727178605187,0.67992343,2644.6,2644.4,4.58325]
[1727178605441,0.79138164,2644.6,2644.4,4.58325]
[1727178605755,0.79138164,2644.7,2644.4,4.58325]
[1727178605961,2.49162576,2644.7,2644.4,4.58325]
[1727178606167,0.68009854,2644.6,2644.4,4.58325]
[1727178606367,0.79138164,2644.7,2644.4,4.58325]
[1727178606682,2.49189255,2644.7,2644.4,4.58325]
[1727178606882,0.68011247,2644.6,2644.4,4.58325]
[1727178607044,0.79138164,2644.7,2644.5,3.78143]
[1727178607244,2.49215611,2644.7,2644.5,3.78143]
[1727178607542,0.68046973,2644.6,2644.5,3.78143]
[1727178608285,0.79138164,2644.7,2644.5,3.78143]
[1727178608976,1.47188568,2644.7,2644.5,3.78143]
[1727178609561,0.79138164,2644.7,2644.6,3.78129]
[1727178609760,2.49427272,2644.7,2644.6,3.78129]
[1727178610574,2.49478022,2644.7,2644.6,6.03093375]
[1727178610878,0.68098982,2644.7,2644.6,6.60116018]
[1727178611385,2.49478285,2644.7,2644.6,6.60116018]
[1727178611545,1.47278799,2644.7,2644.6,6.60116018]
[1727178611746,2.49478285,2644.7,2644.6,6.60116018]
[1727178612041,1.47278799,2644.7,2644.6,6.60116018]
[1727178612244,2.49478285,2644.7,2644.6,6.60116018]
[1727178612472,1.47278799,2644.7,2644.6,6.60116018]
[1727178612669,2.49478285,2644.7,2644.6,6.60116018]
[1727178615544,1.70298468,2644.7,2644.6,6.60116018]
[1727178618061,1.70298468,2644.7,2644.6,4.58299]
[1727178618062,2.88871588,2644.7,2644.6,4.58299]
[1727178618286,2.89154423,2644.7,2644.6,4.58299]
[1727178618468,2.89154423,2644.7,2644.6,0.8017]
[1727178618684,2.89154423,2644.7,2644.4,1.44794375]
[1727178618685,3.28678796,2644.7,2644.4,0.8197]
[1727178618996,1.18973742,2644.5,2644.4,4.60125]
[1727178619207,2.89555045,2644.5,2644.4,4.60125]
[1727178619906,2.89555045,2644.5,2644.4,0.8197]
[1727178620495,2.89555045,2644.5,2644.4,4.60127]
[1727178620802,3.07163033,2644.5,2644.3,3.78164]
[1727178621106,2.89569673,2644.4,2644.3,3.78164]
[1727178623003,2.89736506,2644.4,2644.3,3.78164]
[1727178624183,2.89736506,2644.4,2644.2,3.8197]
[1727178624378,1.1898837,2644.4,2644.3,3.78171]
[1727178624706,2.89732963,2644.4,2644.3,3.78171]
[1727178626279,2.50046139,2644.4,2644.3,19.00498713]
[1727178627499,2.50046139,2644.4,2644.3,16.51328313]
[1727178627708,2.49974214,2644.4,2644.3,9.64505013]
[1727178627910,2.49974214,2644.4,2644.3,9.23110413]
[1727178628499,2.49974214,2644.4,2644.3,6.51277213]
[1727178628982,2.49974214,2644.4,2644.3,5.06482838]
[1727178629705,1.70672668,2644.4,2644.3,5.06482838]
[1727178630400,2.89661038,2644.4,2644.3,3.78171]
[1727178631779,2.89661038,2644.4,2644.3,3.84326829]
[1727178632475,2.89708581,2644.4,2644.3,3.84326829]
[1727178634971,1.70720211,2644.4,2644.3,3.84326829]
[1727178635170,3.07255615,2644.4,2644.3,3.84326829]
[1727178635403,4.65353108,2644.4,2644.3,3.84326829]
[1727178636513,3.07255615,2644.4,2644.3,3.84326829]
[1727178637366,3.07194737,2644.4,2644.3,3.84326829]
[1727178638115,3.07194737,2644.4,2644.3,6.43216829]
[1727178638728,0.89588483,2644.4,2644.3,6.43216829]
[1727178638868,0.89588483,2644.4,2644.3,7.68033249]
[1727178640284,0.89588483,2644.4,2644.3,6.43216829]
[1727178642090,0.89588483,2644.4,2644.3,3.84326829]
[1727178644725,0.89588483,2644.4,2644.3,0.06155829]
[1727178644896,3.42947831,2644.4,2643.9,0.7702]
[1727178645096,3.42947831,2644.4,2644.0,0.05967041]
[1727178645097,3.78213,2644.1,2644.0,0.05967041]
[1727178645296,3.78265,2643.7,2643.4,0.7702]
[1727178645502,3.78265,2643.7,2643.2,3.78319]
[1727178645503,0.79203215,2643.5,2643.2,3.78319]
[1727178645700,0.79191326,2643.4,2643.2,3.78319]
[1727178645886,0.79191326,2643.3,2643.2,3.78315]
[1727178646222,0.79191326,2643.5,2643.4,3.783]
[1727178646529,1.5840643,2643.8,2643.5,3.78286]
[1727178646743,0.79133659,2643.6,2643.5,3.78286]
[1727178647242,1.5840643,2643.8,2643.5,3.78286]
[1727178647437,2.93448158,2643.8,2643.4,3.783]
[1727178647741,0.79092378,2643.5,2643.4,3.783]
[1727178648098,0.79092378,2643.6,2643.4,3.783]
[1727178648302,0.79092378,2643.5,2643.4,3.783]
[1727178648612,1.8033764,2643.5,2643.4,3.783]
[1727178648816,1.18638724,2643.7,2643.4,3.783]
[1727178648817,0.79092378,2643.6,2643.4,3.783]
[1727178649334,0.79092378,2643.7,2643.4,3.783]
[1727178653120,0.79092378,2643.8,2643.4,3.783]
[1727178653320,1.01178897,2643.7,2643.4,3.783]
[1727178653513,0.79092378,2643.8,2643.4,3.783]
[1727178653747,1.01177666,2643.7,2643.4,3.783]
[1727178654053,0.79092378,2643.8,2643.4,3.783]
[1727178655050,0.79092378,2643.8,2643.4,3.78292]
[1727178655258,0.79092378,2643.8,2643.4,4.238342]
[1727178655780,4.57322378,2643.9,2643.4,4.238342]
[1727178656087,4.57322378,2643.9,2643.5,3.78286]
[1727178656294,1.01147503,2643.8,2643.5,3.83470014]
[1727178656442,4.57322378,2643.9,2643.5,3.83470014]
[1727178656643,1.01149558,2643.8,2643.5,3.83470014]
[1727178656884,4.57322378,2643.9,2643.5,3.83470014]
[1727178658353,1.80226571,2643.8,2643.5,0.05184014]
[1727178658570,0.79092378,2643.8,2643.5,0.05184014]
[1727178658876,2.47646916,2643.8,2643.5,0.05184014]
[1727178659082,0.79092378,2643.8,2643.5,0.05184014]
[1727178659267,2.47635157,2643.8,2643.5,0.05184014]
[1727178659467,0.79092378,2643.8,2643.5,0.05184014]
[1727178659670,2.47633742,2643.8,2643.5,0.05184014]
[1727178659883,0.79092378,2643.8,2643.5,0.05184014]
[1727178660089,2.47593181,2643.8,2643.5,0.05184014]
[1727178660241,0.79092378,2643.8,2643.5,0.05184014]
[1727178660438,2.47591342,2643.8,2643.5,0.05184014]
[1727178660645,0.67399515,2643.7,2643.5,0.05184014]
[1727178660845,0.79092378,2643.8,2643.5,0.05184014]
[1727178661157,2.47602709,2643.8,2643.5,0.05184014]
[1727178661358,0.79092378,2643.8,2643.5,0.05184014]
[1727178661575,2.4759563,2643.8,2643.5,0.05184014]
[1727178661785,4.57322378,2643.9,2643.5,0.05184014]
[1727178661999,3.78272,2643.6,2643.5,0.05184014]
[1727178662155,6.35324765,2643.6,2643.5,0.05184014]
[1727178662470,6.35324765,2643.6,2642.9,4.57141]
[1727178662471,3.78304,2643.4,2642.9,4.57141]
[1727178662676,3.78304,2643.4,2643.0,0.05065468]
[1727178663686,3.78304,2643.4,2643.0,3.83420468]
[1727178663865,4.57185319,2643.5,2643.0,3.83420468]
[1727178664067,4.57165319,2643.6,2643.1,3.78341]
[1727178664384,0.67155623,2643.5,2643.1,3.78341]
[1727178664591,0.67155623,2643.5,2643.2,0.05065468]
[1727178664883,0.78893319,2643.7,2643.4,0.7878]
[1727178665092,2.46797427,2643.7,2643.4,0.7878]
[1727178665264,0.67161618,2643.6,2643.4,0.7878]
[1727178665458,0.78893319,2643.7,2643.5,0.05065468]
[1727178665669,2.4677802,2643.7,2643.5,0.05065468]
[1727178665876,0.78893319,2643.7,2643.4,0.7878]
[1727178666084,2.46843872,2643.7,2643.5,0.05065468]
[1727178666282,4.57147319,2643.8,2643.5,0.05065468]
[1727178666461,0.67173489,2643.7,2643.5,0.05065468]
[1727178667153,4.57147319,2643.8,2643.5,0.05065468]
[1727178667356,4.45439509,2643.7,2643.5,0.05065468]
[1727178667560,4.57153319,2643.7,2643.3,3.78314]
[1727178667866,0.78893319,2643.7,2643.3,3.78314]
[1727178668186,2.46830965,2643.7,2643.4,0.05078768]
[1727178668390,0.78893319,2643.7,2643.4,0.05078768]
[1727178668553,6.25077778,2643.7,2643.4,0.05078768]
[1727178668752,0.67171569,2643.6,2643.4,0.05078768]
[1727178669191,4.57152319,2643.7,2643.4,0.05078768]
[1727178669489,0.67167455,2643.6,2643.2,3.78321]
[1727178669696,0.67167455,2643.6,2643.3,0.05078768]
[1727178669869,4.57152319,2643.7,2643.2,3.78321]
[1727178670069,0.67167612,2643.6,2643.3,0.05078768]
[1727178670273,4.57152319,2643.7,2643.2,3.78321]
[1727178670502,4.57152319,2643.7,2643.3,0.05078768]
[1727178670658,4.57152319,2643.7,2643.3,3.83390768]
[1727178670863,4.57152319,2643.7,2643.4,0.05078768]
[1727178671361,4.57152319,2643.7,2643.0,0.038]
[1727178671362,3.78311,2643.4,2643.0,0.038]
[1727178672178,3.78311,2643.4,2643.0,3.82157]
[1727178672179,0.09458709,2643.4,2643.0,3.82157]
[1727178672969,4.57179319,2643.5,2643.1,3.78341]
[1727178672970,0.88351737,2643.5,2643.1,3.78341]
[1727178673175,4.66623737,2643.6,2643.1,3.78341]
[1727178673499,4.57160319,2643.7,2643.2,3.78324]
[1727178673673,0.67185254,2643.6,2643.2,7.56642]
[1727178673998,4.57158319,2643.7,2643.1,0.7878]
[1727178674199,6.34610272,2643.6,2643.1,0.7878]
[1727178674370,4.57172319,2643.6,2643.1,0.7878]
[1727178674574,4.57172319,2643.6,2643.1,4.57116]
[1727178675103,0.67191072,2643.5,2643.1,4.57116]
[1727178675598,0.67191072,2643.5,2643.2,3.78328]
[1727178675808,0.78893319,2643.6,2643.2,3.78328]
[1727178676095,2.46903917,2643.6,2643.2,3.78328]
[1727178676307,0.67204245,2643.5,2643.2,7.56656]
[1727178676464,4.57158319,2643.7,2643.2,3.78328]
[1727178676668,2.46918945,2643.6,2643.2,3.78328]
[1727178677012,4.57158319,2643.7,2643.2,7.5665]
[1727178677171,2.47031094,2643.6,2643.2,7.5665]
[1727178677373,4.57158319,2643.7,2643.2,3.78322]
[1727178677702,2.4703629,2643.6,2643.2,3.78322]
[1727178678110,1.4703629,2643.6,2643.2,3.78322]
[1727178678471,1.4703629,2643.6,2643.2,7.56642]
[1727178678672,3.78265,2643.7,2643.2,7.56642]
[1727178678872,1.00891462,2643.6,2643.2,7.56642]
[1727178679113,3.78265,2643.7,2643.2,7.56642]
[1727178679319,1.00456004,2643.6,2643.2,7.56642]
[1727178679520,3.78265,2643.7,2643.2,7.56642]
[1727178679682,1.00450948,2643.6,2643.2,7.56641]
[1727178679887,4.96903724,2643.7,2643.2,7.56641]
[1727178680192,1.00448643,2643.6,2643.2,7.56641]
[1727178680392,4.96903724,2643.7,2643.2,7.56641]
[1727178680599,1.00462541,2643.6,2643.2,7.56641]
[1727178680795,0.09457651,2643.6,2643.2,7.56641]
[1727178681716,1.00468763,2643.5,2643.2,3.7832]
[1727178682021,5.06369375,2643.6,2643.2,3.7832]
[1727178682218,1.00476561,2643.5,2643.2,3.7832]
[1727178682421,5.06369375,2643.6,2643.2,3.7832]
[1727178682723,1.09936079,2643.5,2643.2,7.56641]
[1727178682888,0.0945766,2643.5,2643.2,7.56641]
[1727178683088,0.0945766,2643.5,2643.3,3.78314]
[1727178683323,5.06371374,2643.6,2643.2,3.7832]
[1727178683615,1.00484443,2643.5,2643.2,3.7832]
[1727178683919,5.06368374,2643.6,2643.2,3.7832]
[1727178684121,1.00486212,2643.5,2643.2,3.7832]
[1727178684284,1.28096377,2643.6,2643.2,7.56641]
[1727178684485,1.00505256,2643.5,2643.2,3.7832]
[1727178684800,1.00505256,2643.4,2643.2,3.7832]
[1727178685123,1.18638724,2643.5,2643.2,3.7832]
[1727178685296,1.0053512,2643.4,2643.2,3.7832]
[1727178685480,1.18638724,2643.5,2643.2,3.7832]
[1727178685684,1.00546051,2643.4,2643.2,3.7832]
[1727178685922,1.18638724,2643.5,2643.2,7.56642]
[1727178686095,1.00547116,2643.4,2643.3,0.05125067]
[1727178686299,1.00547116,2643.4,2643.2,3.7832]
[1727178686503,1.28096379,2643.5,2643.3,0.05125067]
[1727178686800,1.28096379,2643.5,2643.2,3.7832]
[1727178686801,1.00575381,2643.4,2643.2,3.7832]
[1727178687007,1.28096379,2643.5,2643.4,0.05125067]
[1727178687312,1.18638724,2643.5,2643.4,0.05125067]
[1727178687517,1.00610007,2643.5,2643.4,5.38380374]
[1727178687824,1.18638724,2643.9,2643.7,4.57035]
[1727178687997,1.00631273,2643.8,2643.7,5.405657]
[1727178688187,0.79086976,2643.8,2643.7,4.57035]
[1727178688521,1.79757688,2643.8,2643.7,4.62160067]
[1727178688825,1.79757688,2643.8,2643.7,0.83905067]
[1727178689025,1.79758315,2643.8,2643.7,4.62162067]
[1727178689319,1.00670712,2643.8,2643.7,4.62162067]
[1727178689520,2.19309436,2643.8,2643.7,4.62162067]
[1727178690328,2.34970541,2643.8,2643.7,0.83905067]
[1727178690533,3.93376971,2643.8,2643.7,0.83905067]
[1727178691027,2.34970541,2643.8,2643.7,0.83905067]
[1727178691325,2.59077142,2643.8,2643.7,4.62162067]
[1727178693001,2.59218947,2643.8,2643.7,0.83905067]
[1727178693236,2.59218947,2643.8,2643.7,0.05125067]
[1727178693435,4.02975433,2643.8,2643.5,3.78284]
[1727178693598,5.76219551,2643.9,2643.7,0.05085156]
[1727178693932,2.3520582,2643.8,2643.5,3.78284]
[1727178694104,2.19587601,2643.7,2643.5,3.78284]
[1727178694428,1.79991826,2643.6,2643.5,3.78284]
[1727178694629,1.00802494,2643.6,2643.5,4.621623]
[1727178696350,2.19587601,2643.6,2643.5,4.621623]
[1727178696634,2.19587601,2643.6,2643.5,3.78284]
[1727178696635,1.00802494,2643.6,2643.5,3.78284]
[1727178696799,2.19587601,2643.6,2643.5,3.78284]
[1727178697458,1.80015102,2643.6,2643.4,4.60499]
[1727178697600,1.80011053,2643.5,2643.4,4.60499]
[1727178697954,1.80075958,2643.5,2643.4,4.60499]
[1727178698157,2.47321136,2643.5,2643.4,4.60499]
[1727178698634,2.47321136,2643.5,2643.4,0.822]
[1727178700415,2.47321136,2643.5,2643.3,3.78312]
[1727178700612,0.79208559,2643.5,2643.3,4.10973653]
[1727178701254,0.79208559,2643.5,2643.4,0.05085156]
[1727178701454,0.67229866,2643.5,2643.4,4.65585156]
[1727178701631,0.79208559,2643.6,2643.5,4.60486]
[1727178701951,0.67235892,2643.6,2643.5,13.14012035]
[1727178702128,0.67235892,2643.6,2643.5,9.30186445]
[1727178702716,0.79208559,2643.7,2643.6,3.78272]
[1727178703054,2.47296765,2643.7,2643.6,3.78272]
[1727178703261,2.47296765,2643.7,2643.6,4.98627529]
[1727178706631,1.68088206,2643.7,2643.6,4.98627529]
[1727178706828,1.68088206,2643.7,2643.6,3.83361945]
[1727178707217,1.18785107,2643.8,2643.6,3.83361945]
[1727178707414,2.47313785,2643.7,2643.6,3.83361945]
[1727178712238,2.47323618,2643.7,2643.6,3.83361945]
[1727178713161,2.47323618,2643.7,2643.6,10.97554945]
[1727178713162,1.68150363,2643.7,2643.6,10.97554945]
[1727178713322,2.47323618,2643.7,2643.6,12.71112998]
[1727178713527,1.464334,2643.7,2643.6,12.71112998]
[1727178713734,2.47323618,2643.7,2643.6,12.71112998]
[1727178713935,1.464334,2643.7,2643.6,12.71112998]
[1727178714158,0.67260145,2643.7,2643.6,13.50662998]
[1727178714584,1.18785107,2644.3,2644.1,4.5775]
[1727178714881,1.18785107,2644.5,2644.4,3.78157]
[1727178715064,1.58380143,2644.7,2644.5,4.57693]
[1727178715065,1.18785107,2644.7,2644.5,4.57693]
[1727178715234,1.58380143,2644.8,2644.6,3.78129]
[1727178715235,1.18785107,2644.8,2644.6,3.78129]
[1727178715440,1.00225125,2644.7,2644.6,3.83179571]
[1727178716480,1.00225125,2644.7,2644.6,0.05050571]
[1727178716971,2.18967081,2644.7,2644.3,3.78162]
[1727178717184,1.00181974,2644.6,2644.4,0.05010684]
[1727178717336,1.18785107,2644.7,2644.4,0.05010684]
[1727178717337,4.96900107,2644.7,2644.4,0.05010684]
[1727178717536,2.18936226,2644.6,2644.2,4.57734]
[1727178717768,1.00151119,2644.5,2644.3,0.05010684]
[1727178718004,1.18785107,2644.6,2644.3,3.78167]
[1727178718192,1.00149476,2644.5,2644.4,0.05010684]
[1727178718840,1.00149476,2644.5,2644.1,3.78192]
[1727178719038,4.96920107,2644.6,2644.4,0.0501866]
[1727178719268,1.00128698,2644.5,2644.1,7.56384]
[1727178719476,3.78145,2644.5,2644.0,0.7955]
[1727178719678,1.00121122,2644.4,2644.0,0.7955]
[1727178719881,1.18785107,2644.4,2644.0,4.57763]
[1727178720176,2.18906229,2644.4,2644.0,4.57763]
[1727178720342,1.00121122,2644.3,2644.0,4.57763]
[1727178720544,1.18785107,2644.4,2644.0,4.57763]
[1727178720963,1.18785107,2644.4,2644.0,0.7955]
[1727178720964,1.00118574,2644.3,2644.0,0.7955]
[1727178721184,1.18785107,2644.4,2644.1,3.782]
[1727178721484,1.00118891,2644.3,2644.1,3.782]
[1727178721670,1.18785107,2644.4,2644.1,3.782]
[1727178721880,1.00120985,2644.3,2644.1,3.782]
[1727178722084,1.18785107,2644.4,2644.1,3.782]
[1727178722308,1.00123975,2644.3,2644.1,3.782]
[1727178722604,1.18785107,2644.4,2644.1,3.782]
[1727178722769,1.00119937,2644.3,2644.1,3.782]
[1727178723098,1.18785107,2644.4,2644.0,4.57764]
[1727178723392,1.00119303,2644.3,2644.0,3.78214]
[1727178723597,1.18785107,2644.4,2644.0,3.78214]
[1727178723803,1.00116773,2644.3,2643.8,4.60431]
[1727178723974,1.00116773,2644.3,2643.8,4.60426]
[1727178723975,2.1890188,2644.3,2643.8,4.60426]
[1727178724172,1.00116773,2644.2,2643.8,8.38658]
[1727178724500,0.79071581,2644.2,2643.8,8.38658]
[1727178724659,1.79191811,2644.1,2643.8,8.38658]
[1727178724992,0.79071581,2644.1,2643.8,4.60422]
[1727178725168,0.79071581,2644.3,2644.0,3.78214]
[1727178725612,1.79198326,2644.2,2644.0,3.78214]
[1727178725895,0.79071581,2644.2,2644.0,3.78214]
[1727178726067,1.79194194,2644.3,2644.1,3.782]
[1727178726280,0.79071581,2644.3,2644.1,3.782]
[1727178726472,0.79071581,2644.4,2644.2,3.78186]
[1727178726683,0.79071581,2644.5,2644.4,3.78157]
[1727178726991,1.79239207,2644.5,2644.4,3.78157]
[1727178727200,0.79071581,2644.6,2644.5,3.78143]
[1727178727565,1.79244083,2644.6,2644.5,3.78143]
[1727178728581,1.79233413,2644.6,2644.5,3.78143]
[1727178728796,1.00161832,2644.6,2644.5,3.78143]
[1727178729194,0.79071581,2644.6,2644.5,3.78143]
[1727178729427,0.79071581,2644.7,2644.5,3.78143]
[1727178729625,1.00162018,2644.6,2644.5,3.78143]
[1727178730124,0.79071581,2644.7,2644.5,3.78143]
[1727178730326,0.79071581,2644.7,2644.4,3.78156]
[1727178730538,1.79231081,2644.6,2644.3,3.78171]
[1727178730695,0.79071581,2644.6,2644.3,3.78171]
[1727178730894,1.79223769,2644.5,2644.3,3.78171]
[1727178731112,0.79071581,2644.5,2644.4,0.05006954]
[1727178731428,1.7923292,2644.5,2644.4,0.05006954]
[1727178734431,1.45842862,2644.5,2644.4,0.05006954]
[1727178734607,2.4599977,2644.5,2644.2,3.78185]
[1727178734933,4.54390087,2644.4,2644.3,0.05006954]
[1727178735230,6.23600821,2644.4,2643.5,0.8219]
[1727178735435,0.75246177,2644.0,2643.8,3.78242]
[1727178735609,0.75246177,2644.0,2643.8,3.78237]
[1727178735925,2.42148589,2644.0,2643.9,0.04839463]
[1727178736429,1.75377308,2644.0,2643.9,0.04839463]
[1727178737040,1.18569265,2644.2,2643.9,0.87029463]
[1727178737251,1.6687031,2644.2,2643.9,4.65258463]
[1727178737460,1.6687031,2644.1,2643.9,0.87029463]
[1727178737739,4.96750265,2644.3,2643.9,0.87029463]
[1727178737946,1.6697412,2644.2,2643.9,0.87029463]
[1727178738145,0.66789648,2644.1,2643.9,0.87029463]
[1727178738845,4.44990648,2644.1,2643.9,0.04839463]
[1727178739149,1.66973211,2644.0,2643.9,0.04839463]
[1727178739638,1.66973211,2644.0,2643.6,3.78265]
[1727178739847,4.96770265,2644.1,2643.9,0.04839463]
[1727178740006,1.66981343,2644.0,2643.7,3.78255]
[1727178740208,0.66792537,2643.9,2643.8,0.04839463]
[1727178740452,0.66792537,2644.0,2643.7,3.78255]
[1727178740759,0.66792537,2644.0,2643.8,3.83079463]
[1727178741422,1.66985515,2644.1,2643.9,0.8219]
[1727178741749,1.18569265,2644.3,2644.0,3.78214]
[1727178741907,1.18569265,2644.3,2644.0,7.612679]
[1727178741908,0.66795743,2644.2,2644.0,7.612679]
[1727178742308,0.66795743,2644.2,2644.0,3.830539]
[1727178742539,1.00227957,2644.1,2644.0,3.830539]
[1727178743131,0.66795743,2644.1,2644.0,3.830539]
[1727178743338,1.18569265,2644.3,2644.1,3.782]
[1727178743649,0.66837814,2644.2,2644.1,3.782]
[1727178743846,0.66839104,2644.2,2644.1,3.782]
[1727178744140,1.6709776,2644.2,2644.1,4.6039]
[1727178744319,1.18569265,2644.5,2644.1,17.33221574]
[1727178744524,8.47569265,2644.7,2644.3,3.78158]
[1727178744746,1.67127675,2644.6,2644.5,3.78143]
[1727178744914,1.67127675,2644.6,2644.5,4.60333]
[1727178745549,2.46257297,2644.6,2644.5,4.60333]